[Event "*** Titled Tuesday Blitz"]
[Site "Chess.com"]
[Date "2021.04.20"]
[Round "6"]
[White "Ajedrez_con_German"]
[Black "scarabee43"]
[Result "1-0"]
[WhiteElo "2509"]
[BlackElo "2633"]
[TimeControl "180+1"]
[EndTime "11:09:09 PDT"]
[Termination "Ajedrez_con_German won by checkmate"]

1. Nf3 {[%clk 0:03:00.9]} 1... Nf6 {[%clk 0:02:59.6]} 2. e3 {[%clk 0:02:55.6]}
2... e6 {[%clk 0:02:59.6]} 3. c4 {[%clk 0:02:51.1]} 3... d5 {[%clk 0:02:57.2]}
4. b3 {[%clk 0:02:48.9]} 4... Be7 {[%clk 0:02:56.6]} 5. Bb2 {[%clk 0:02:47.6]}
5... O-O {[%clk 0:02:57]} 6. Nc3 {[%clk 0:02:47.5]} 6... b6 {[%clk 0:02:53.1]}
7. cxd5 {[%clk 0:02:45.3]} 7... exd5 {[%clk 0:02:53]} 8. d4 {[%clk 0:02:44.8]}
8... Ba6 {[%clk 0:02:50.4]} 9. Bxa6 {[%clk 0:02:35.2]} 9... Nxa6 {[%clk
0:02:51.3]} 10. O-O {[%clk 0:02:35.3]} 10... c6 {[%clk 0:02:47.2]} 11. Ne5
{[%clk 0:02:33.2]} 11... Nb8 {[%clk 0:02:44.4]} 12. Rc1 {[%clk 0:02:31.4]} 12...
Qd6 {[%clk 0:02:43.5]} 13. Ne2 {[%clk 0:02:26.2]} 13... Rc8 {[%clk 0:02:40.8]}
14. Ng3 {[%clk 0:02:25]} 14... Bf8 {[%clk 0:02:33.6]} 15. Nf5 {[%clk 0:02:10.1]}
15... Qe6 {[%clk 0:02:32.6]} 16. Qf3 {[%clk 0:01:57]} 16... Nbd7 {[%clk
0:02:30.1]} 17. Nxd7 {[%clk 0:01:50.1]} 17... Nxd7 {[%clk 0:02:27.2]} 18. Rc2
{[%clk 0:01:32.6]} 18... Rc7 {[%clk 0:02:21.1]} 19. Rfc1 {[%clk 0:01:28.5]}
19... Rac8 {[%clk 0:02:20.9]} 20. Ng3 {[%clk 0:01:23.8]} 20... Nf6 {[%clk
0:02:16.3]} 21. Qf5 {[%clk 0:01:22.6]} 21... Qxf5 {[%clk 0:02:13.6]} 22. Nxf5
{[%clk 0:01:22.6]} 22... g6 {[%clk 0:02:13.7]} 23. Ng3 {[%clk 0:01:22.5]} 23...
Bd6 {[%clk 0:02:13.8]} 24. Ne2 {[%clk 0:01:22.4]} 24... Kf8 {[%clk 0:02:13.2]}
25. Nc3 {[%clk 0:01:22.1]} 25... Ke7 {[%clk 0:02:12.3]} 26. Kf1 {[%clk
0:01:21.9]} 26... Kd7 {[%clk 0:02:09.2]} 27. h3 {[%clk 0:01:22.1]} 27... Re8
{[%clk 0:02:08.6]} 28. Ke2 {[%clk 0:01:21.5]} 28... Rcc8 {[%clk 0:02:00.2]} 29.
Kd3 {[%clk 0:01:20.6]} 29... Bf8 {[%clk 0:01:56.7]} 30. Nb1 {[%clk 0:01:15.2]}
30... Ne4 {[%clk 0:01:55]} 31. f3 {[%clk 0:01:12]} 31... Nd6 {[%clk 0:01:53]}
32. Re2 {[%clk 0:01:02]} 32... Bh6 {[%clk 0:01:49.9]} 33. Rce1 {[%clk
0:01:00.9]} 33... Re6 {[%clk 0:01:49.2]} 34. e4 {[%clk 0:00:56]} 34... f6 {[%clk
0:01:40.2]} 35. exd5 {[%clk 0:00:54]} 35... Rxe2 {[%clk 0:01:40.2]} 36. dxc6+
{[%clk 0:00:51.1]} 36... Rxc6 {[%clk 0:01:40.7]} 37. Rxe2 {[%clk 0:00:51.7]}
37... Rc8 {[%clk 0:01:24.1]} 38. Nc3 {[%clk 0:00:51]} 38... Re8 {[%clk
0:01:19.1]} 39. Ne4 {[%clk 0:00:44.1]} 39... Nxe4 {[%clk 0:01:09.9]} 40. fxe4
{[%clk 0:00:43]} 40... f5 {[%clk 0:01:06.6]} 41. exf5 {[%clk 0:00:40.2]} 41...
Rxe2 {[%clk 0:01:05.9]} 42. Kxe2 {[%clk 0:00:39.8]} 42... gxf5 {[%clk
0:01:06.4]} 43. Kd3 {[%clk 0:00:32.2]} 43... b5 {[%clk 0:01:05.1]} 44. a4 {[%clk
0:00:24.1]} 44... a6 {[%clk 0:01:04.3]} 45. axb5 {[%clk 0:00:23.1]} 45... axb5
{[%clk 0:01:02.6]} 46. Bc3 {[%clk 0:00:22]} 46... Kc6 {[%clk 0:01:02]} 47. Bd2
{[%clk 0:00:20.8]} 47... Bg7 {[%clk 0:01:01]} 48. Be3 {[%clk 0:00:19.4]} 48...
Kd5 {[%clk 0:01:01.3]} 49. Bf2 {[%clk 0:00:19.4]} 49... f4 {[%clk 0:01:00]} 50.
Bg1 {[%clk 0:00:18.8]} 50... Bf6 {[%clk 0:01:00]} 51. Bf2 {[%clk 0:00:19.1]}
51... Bg7 {[%clk 0:00:59]} 52. Bg1 {[%clk 0:00:18.3]} 52... Bf6 {[%clk
0:00:59.2]} 53. Bh2 {[%clk 0:00:17.7]} 53... f3 {[%clk 0:00:51.4]} 54. gxf3
{[%clk 0:00:16.7]} 54... Bxd4 {[%clk 0:00:52]} 55. Bf4 {[%clk 0:00:16.5]} 55...
Bf6 {[%clk 0:00:52]} 56. Bd2 {[%clk 0:00:16]} 56... Be7 {[%clk 0:00:49.7]} 57.
Bc3 {[%clk 0:00:15.3]} 57... Bg5 {[%clk 0:00:48.3]} 58. Bd2 {[%clk 0:00:14.7]}
58... Bf6 {[%clk 0:00:48.4]} 59. f4 {[%clk 0:00:13.6]} 59... Bh4 {[%clk
0:00:42.4]} 60. Bc3 {[%clk 0:00:12.3]} 60... Be7 {[%clk 0:00:38.3]} 61. Bd4
{[%clk 0:00:11.6]} 61... Bd6 {[%clk 0:00:36.4]} 62. f5 {[%clk 0:00:11.8]} 62...
Bf8 {[%clk 0:00:33.9]} 63. f6 {[%clk 0:00:11.9]} 63... Bd6 {[%clk 0:00:34.3]}
64. Bc3 {[%clk 0:00:07.8]} 64... Bf8 {[%clk 0:00:33.9]} 65. Ke3 {[%clk
0:00:06.8]} 65... Ke6 {[%clk 0:00:32.5]} 66. Ke4 {[%clk 0:00:07.2]} 66... Bc5
{[%clk 0:00:31.8]} 67. f7 {[%clk 0:00:05.2]} 67... Kxf7 {[%clk 0:00:31]} 68. Kd5
{[%clk 0:00:05.6]} 68... Bf8 {[%clk 0:00:30.9]} 69. Kc6 {[%clk 0:00:05.6]} 69...
b4 {[%clk 0:00:30.9]} 70. Bd2 {[%clk 0:00:05.8]} 70... Ke6 {[%clk 0:00:31.2]}
71. Kb5 {[%clk 0:00:06]} 71... Kd5 {[%clk 0:00:26.8]} 72. Bxb4 {[%clk
0:00:06.1]} 72... Bh6 {[%clk 0:00:27.4]} 73. Be7 {[%clk 0:00:05.7]} 73... Bd2
{[%clk 0:00:26]} 74. b4 {[%clk 0:00:05.6]} 74... Ke6 {[%clk 0:00:25.1]} 75. Bc5
{[%clk 0:00:05.1]} 75... Kd7 {[%clk 0:00:25.3]} 76. Kc4 {[%clk 0:00:05.3]} 76...
Kc6 {[%clk 0:00:24.9]} 77. b5+ {[%clk 0:00:05.8]} 77... Kb7 {[%clk 0:00:24.7]}
78. Kd5 {[%clk 0:00:06.1]} 78... Bc1 {[%clk 0:00:24.5]} 79. Ke6 {[%clk
0:00:06.2]} 79... Bd2 {[%clk 0:00:24.8]} 80. Kf7 {[%clk 0:00:06.3]} 80... Kc7
{[%clk 0:00:24.4]} 81. Kg7 {[%clk 0:00:06.4]} 81... h5 {[%clk 0:00:21.7]} 82.
Kg6 {[%clk 0:00:06.7]} 82... h4 {[%clk 0:00:20.8]} 83. Kh5 {[%clk 0:00:07]}
83... Be1 {[%clk 0:00:20.8]} 84. Kg4 {[%clk 0:00:07.3]} 84... Bg3 {[%clk
0:00:20.3]} 85. Bd4 {[%clk 0:00:07]} 85... Be1 {[%clk 0:00:19.1]} 86. Be3 {[%clk
0:00:07.3]} 86... Kb7 {[%clk 0:00:17.6]} 87. Kf3 {[%clk 0:00:07.3]} 87... Bg3
{[%clk 0:00:15.9]} 88. Bf2 {[%clk 0:00:06.5]} 88... Bd6 {[%clk 0:00:14.4]} 89.
Kg4 {[%clk 0:00:06.1]} 89... Be7 {[%clk 0:00:14.4]} 90. Bxh4 {[%clk 0:00:06.3]}
90... Bc5 {[%clk 0:00:14.7]} 91. Bd8 {[%clk 0:00:04.7]} 91... Kc8 {[%clk
0:00:14.3]} 92. Ba5 {[%clk 0:00:04.2]} 92... Kd7 {[%clk 0:00:14.7]} 93. h4
{[%clk 0:00:04.6]} 93... Ke7 {[%clk 0:00:14.8]} 94. h5 {[%clk 0:00:05.2]} 94...
Kf7 {[%clk 0:00:14.9]} 95. b6 {[%clk 0:00:05.5]} 95... Bd4 {[%clk 0:00:13.3]}
96. b7 {[%clk 0:00:05.8]} 96... Be5 {[%clk 0:00:13.8]} 97. Bd2 {[%clk
0:00:05.7]} 97... Bb8 {[%clk 0:00:10.1]} 98. Bf4 {[%clk 0:00:05.8]} 98... Ba7
{[%clk 0:00:10.2]} 99. b8=Q {[%clk 0:00:06.3]} 99... Bxb8 {[%clk 0:00:10.5]}
100. Bxb8 {[%clk 0:00:07.2]} 100... Kg7 {[%clk 0:00:11]} 101. Be5+ {[%clk
0:00:07.1]} 101... Kh7 {[%clk 0:00:11.5]} 102. Kh4 {[%clk 0:00:07.6]} 102... Kh6
{[%clk 0:00:11.7]} 103. Kg4 {[%clk 0:00:08]} 103... Kh7 {[%clk 0:00:12.3]} 104.
Kg5 {[%clk 0:00:08.5]} 104... Kg8 {[%clk 0:00:13]} 105. Kg6 {[%clk 0:00:08.7]}
105... Kf8 {[%clk 0:00:13.1]} 106. h6 {[%clk 0:00:09.3]} 106... Ke7 {[%clk
0:00:14]} 107. h7 {[%clk 0:00:09.5]} 107... Ke6 {[%clk 0:00:14.9]} 108. h8=Q
{[%clk 0:00:09.8]} 108... Kd5 {[%clk 0:00:15.6]} 109. Qf6 {[%clk 0:00:10.1]}
109... Ke4 {[%clk 0:00:13.8]} 110. Bh2 {[%clk 0:00:11]} 110... Kd3 {[%clk
0:00:13.7]} 111. Qe5 {[%clk 0:00:11.2]} 111... Kc4 {[%clk 0:00:13.6]} 112. Kf5
{[%clk 0:00:12.1]} 112... Kd3 {[%clk 0:00:13.5]} 113. Qe4+ {[%clk 0:00:12.1]}
113... Kc3 {[%clk 0:00:13.7]} 114. Qd5 {[%clk 0:00:12.1]} 114... Kb4 {[%clk
0:00:13.5]} 115. Ke4 {[%clk 0:00:13]} 115... Kc3 {[%clk 0:00:13.7]} 116. Qd4+
{[%clk 0:00:13.2]} 116... Kb3 {[%clk 0:00:14.3]} 117. Qc5 {[%clk 0:00:13.3]}
117... Kb2 {[%clk 0:00:14.1]} 118. Kd3 {[%clk 0:00:14.2]} 118... Kb3 {[%clk
0:00:14.3]} 119. Qc4+ {[%clk 0:00:14.2]} 119... Ka3 {[%clk 0:00:14.6]} 120. Qb5
{[%clk 0:00:14.1]} 120... Ka2 {[%clk 0:00:14.6]} 121. Kc2 {[%clk 0:00:15]}
121... Ka1 {[%clk 0:00:15.4]} 122. Qb2# {[%clk 0:00:15]} 1-0

[Event "*** Titled Tuesday Blitz"]
[Site "Chess.com"]
[Date "2021.04.20"]
[Round "7"]
[White "barbara25"]
[Black "dodorox"]
[Result "1-0"]
[WhiteElo "2317"]
[BlackElo "2121"]
[TimeControl "180+1"]
[EndTime "11:12:18 PDT"]
[Termination "barbara25 won by resignation"]

1. e4 {[%clk 0:03:00.9]} 1... d6 {[%clk 0:02:59.4]} 2. d4 {[%clk 0:03:00.3]}
2... e5 {[%clk 0:02:58.8]} 3. Nc3 {[%clk 0:03:00.9]} 3... Be7 {[%clk 0:02:51.2]}
4. Nf3 {[%clk 0:03:00.6]} 4... Nd7 {[%clk 0:02:49.9]} 5. Be3 {[%clk 0:02:59.9]}
5... Ngf6 {[%clk 0:02:47.5]} 6. h3 {[%clk 0:02:59.5]} 6... c6 {[%clk 0:02:47.7]}
7. Qd2 {[%clk 0:02:59.3]} 7... O-O {[%clk 0:02:43.1]} 8. O-O-O {[%clk
0:02:59.3]} 8... b5 {[%clk 0:02:42.2]} 9. Bd3 {[%clk 0:02:58.1]} 9... a5 {[%clk
0:02:19.4]} 10. g4 {[%clk 0:02:57.1]} 10... a4 {[%clk 0:02:12.4]} 11. Ne2 {[%clk
0:02:54.9]} 11... Qa5 {[%clk 0:01:50.1]} 12. Qxa5 {[%clk 0:02:52.9]} 12... Rxa5
{[%clk 0:01:50.3]} 13. Ng3 {[%clk 0:02:53.2]} 13... Re8 {[%clk 0:01:38]} 14. g5
{[%clk 0:02:51.3]} 14... Nxe4 {[%clk 0:01:24.1]} 15. Bxe4 {[%clk 0:02:42.3]}
15... d5 {[%clk 0:01:23.8]} 16. Bf5 {[%clk 0:02:42.6]} 16... e4 {[%clk
0:01:22.6]} 17. Bxd7 {[%clk 0:02:40.7]} 17... Bxd7 {[%clk 0:01:19.1]} 18. Nd2
{[%clk 0:02:39.2]} 1-0

[Event "*** Titled Tuesday Blitz"]
[Site "Chess.com"]
[Date "2021.04.20"]
[Round "7"]
[White "MVM2008"]
[Black "beautroll"]
[Result "0-1"]
[WhiteElo "2170"]
[BlackElo "2465"]
[TimeControl "180+1"]
[EndTime "11:12:25 PDT"]
[Termination "beautroll won by resignation"]

1. e4 {[%clk 0:03:00.9]} 1... c5 {[%clk 0:03:00.1]} 2. Nf3 {[%clk 0:03:00.3]}
2... d6 {[%clk 0:03:00.4]} 3. d4 {[%clk 0:03:00.5]} 3... cxd4 {[%clk 0:03:01.3]}
4. Nxd4 {[%clk 0:03:01.4]} 4... Nf6 {[%clk 0:03:01.2]} 5. Nc3 {[%clk 0:03:00.6]}
5... a6 {[%clk 0:03:01.4]} 6. Bc4 {[%clk 0:03:01.2]} 6... e6 {[%clk 0:03:00.8]}
7. Bb3 {[%clk 0:03:00.3]} 7... b5 {[%clk 0:02:59.3]} 8. a3 {[%clk 0:02:59]} 8...
Be7 {[%clk 0:02:57.9]} 9. O-O {[%clk 0:02:58.8]} 9... O-O {[%clk 0:02:57.7]} 10.
f4 {[%clk 0:02:59.1]} 10... Bb7 {[%clk 0:02:48.5]} 11. Qe2 {[%clk 0:02:47.6]}
11... Nbd7 {[%clk 0:02:30]} 12. Nxe6 {[%clk 0:02:30.9]} 12... fxe6 {[%clk
0:02:28.5]} 13. Bxe6+ {[%clk 0:02:31.8]} 13... Kh8 {[%clk 0:02:25.9]} 14. e5
{[%clk 0:02:31.4]} 14... dxe5 {[%clk 0:02:23.4]} 15. fxe5 {[%clk 0:02:32.3]}
15... Qb6+ {[%clk 0:02:23]} 16. Be3 {[%clk 0:02:26.4]} 16... Qxe6 {[%clk
0:02:22.4]} 17. exf6 {[%clk 0:02:27.3]} 17... Bxf6 {[%clk 0:02:19.2]} 18. Kh1
{[%clk 0:02:24.8]} 18... Rae8 {[%clk 0:02:17.6]} 19. Rae1 {[%clk 0:02:23.1]}
19... Bh4 {[%clk 0:02:03.9]} 20. Rxf8+ {[%clk 0:02:12.3]} 20... Nxf8 {[%clk
0:02:02.7]} 21. Bf2 {[%clk 0:02:13.2]} 21... Qxe2 {[%clk 0:01:50.2]} 0-1

[Event "*** Titled Tuesday Blitz"]
[Site "Chess.com"]
[Date "2021.04.20"]
[Round "7"]
[White "Jenia84"]
[Black "Legendinunknown"]
[Result "0-1"]
[WhiteElo "2410"]
[BlackElo "2585"]
[TimeControl "180+1"]
[EndTime "11:13:04 PDT"]
[Termination "Legendinunknown won by resignation"]

1. e4 {[%clk 0:03:00.9]} 1... e5 {[%clk 0:02:59]} 2. Nf3 {[%clk 0:03:00.4]} 2...
Nc6 {[%clk 0:02:59.1]} 3. Bb5 {[%clk 0:02:59.6]} 3... a6 {[%clk 0:02:58.2]} 4.
Ba4 {[%clk 0:02:59.1]} 4... d6 {[%clk 0:02:56.9]} 5. O-O {[%clk 0:02:50.8]} 5...
Bg4 {[%clk 0:02:55]} 6. h3 {[%clk 0:02:50.1]} 6... h5 {[%clk 0:02:52.4]} 7. c3
{[%clk 0:02:48.1]} 7... Qf6 {[%clk 0:02:45.3]} 8. d4 {[%clk 0:02:36.7]} 8... b5
{[%clk 0:02:41.2]} 9. d5 {[%clk 0:02:28.7]} 9... bxa4 {[%clk 0:02:32.8]} 10.
Qxa4 {[%clk 0:02:20.5]} 10... Ne7 {[%clk 0:02:27.9]} 11. Bg5 {[%clk 0:02:12.1]}
11... Qg6 {[%clk 0:02:24]} 12. hxg4 {[%clk 0:02:07.8]} 12... hxg4 {[%clk
0:02:21.3]} 13. Nbd2 {[%clk 0:01:37.3]} 13... gxf3 {[%clk 0:02:17]} 14. Nxf3
{[%clk 0:01:37.3]} 14... Qh5 {[%clk 0:02:16.2]} 15. Bh4 {[%clk 0:01:31.9]} 15...
g5 {[%clk 0:02:13.9]} 16. dxc6 {[%clk 0:01:18.1]} 16... gxh4 {[%clk 0:02:11.3]}
17. Rfd1 {[%clk 0:01:16.7]} 17... h3 {[%clk 0:02:07.9]} 18. Rxd6 {[%clk
0:01:14.9]} 18... hxg2 {[%clk 0:02:04.7]} 0-1

[Event "*** Titled Tuesday Blitz"]
[Site "Chess.com"]
[Date "2021.04.20"]
[Round "7"]
[White "Frogo47"]
[Black "zurzan"]
[Result "1-0"]
[WhiteElo "2541"]
[BlackElo "1997"]
[TimeControl "180+1"]
[EndTime "11:13:18 PDT"]
[Termination "Frogo47 won by resignation"]

1. e4 {[%clk 0:03:00.9]} 1... Nf6 {[%clk 0:02:59.5]} 2. e5 {[%clk 0:03:00.5]}
2... Nd5 {[%clk 0:02:59.8]} 3. d4 {[%clk 0:03:01.1]} 3... d6 {[%clk 0:02:59.7]}
4. c4 {[%clk 0:03:01.6]} 4... Nb6 {[%clk 0:02:59.6]} 5. f4 {[%clk 0:03:02.3]}
5... dxe5 {[%clk 0:02:59.6]} 6. fxe5 {[%clk 0:03:02.5]} 6... Nc6 {[%clk
0:03:00]} 7. Be3 {[%clk 0:03:02.7]} 7... Bf5 {[%clk 0:03:00.1]} 8. Nc3 {[%clk
0:03:03]} 8... e6 {[%clk 0:03:00.4]} 9. Nf3 {[%clk 0:03:03.1]} 9... Be7 {[%clk
0:03:00.7]} 10. Be2 {[%clk 0:03:03.5]} 10... O-O {[%clk 0:03:00.6]} 11. O-O
{[%clk 0:03:04]} 11... f6 {[%clk 0:03:00.8]} 12. exf6 {[%clk 0:03:03.5]} 12...
Bxf6 {[%clk 0:03:01.3]} 13. Qd2 {[%clk 0:03:04]} 13... Qe8 {[%clk 0:03:00.5]}
14. Kh1 {[%clk 0:03:04.1]} 14... Rd8 {[%clk 0:02:58.7]} 15. Rad1 {[%clk
0:03:04.1]} 15... e5 {[%clk 0:02:54.5]} 16. d5 {[%clk 0:03:03.5]} 16... e4
{[%clk 0:02:37]} 17. Nd4 {[%clk 0:03:02.8]} 17... Bg6 {[%clk 0:02:35.4]} 18. Ne6
{[%clk 0:03:01]} 18... Bxc3 {[%clk 0:02:17.5]} 19. Rxf8+ {[%clk 0:02:52.3]}
19... Qxf8 {[%clk 0:02:17.4]} 20. Qxc3 {[%clk 0:02:52.5]} 20... Qf6 {[%clk
0:02:04.6]} 21. Qxf6 {[%clk 0:02:47.7]} 21... gxf6 {[%clk 0:02:03.3]} 22. Bxb6
{[%clk 0:02:39.2]} 22... axb6 {[%clk 0:01:57.2]} 23. dxc6 {[%clk 0:02:39.5]}
23... Rxd1+ {[%clk 0:01:56.2]} 24. Bxd1 {[%clk 0:02:39.6]} 24... bxc6 {[%clk
0:01:56.8]} 25. Kg1 {[%clk 0:02:30.2]} 25... b5 {[%clk 0:01:56]} 26. cxb5 {[%clk
0:02:27.1]} 26... cxb5 {[%clk 0:01:56.9]} 27. Nxc7 {[%clk 0:02:27.2]} 27... b4
{[%clk 0:01:56.4]} 28. Nd5 {[%clk 0:02:26.8]} 28... b3 {[%clk 0:01:52.1]} 29.
Bxb3 {[%clk 0:02:25.5]} 29... Kg7 {[%clk 0:01:51.9]} 30. Kf2 {[%clk 0:02:22.4]}
30... f5 {[%clk 0:01:52.2]} 31. Ke3 {[%clk 0:02:22.6]} 31... Kh6 {[%clk
0:01:51.2]} 32. a4 {[%clk 0:02:20.2]} 32... Kg5 {[%clk 0:01:51.4]} 33. Nf4
{[%clk 0:02:19.9]} 33... Be8 {[%clk 0:01:47.7]} 34. a5 {[%clk 0:02:19.6]} 34...
Bb5 {[%clk 0:01:47.3]} 35. Bd1 {[%clk 0:02:10.6]} 35... Ba6 {[%clk 0:01:45.3]}
36. Be2 {[%clk 0:02:10.5]} 36... Bb7 {[%clk 0:01:43.9]} 37. a6 {[%clk 0:02:11]}
37... Ba8 {[%clk 0:01:43.9]} 38. b4 {[%clk 0:02:11.9]} 38... h6 {[%clk
0:01:42.8]} 39. b5 {[%clk 0:02:12.8]} 39... Kf6 {[%clk 0:01:38.1]} 40. b6 {[%clk
0:02:13.1]} 1-0

[Event "*** Titled Tuesday Blitz"]
[Site "Chess.com"]
[Date "2021.04.20"]
[Round "7"]
[White "shnitez"]
[Black "DrMamaliga"]
[Result "1-0"]
[WhiteElo "2516"]
[BlackElo "2355"]
[TimeControl "180+1"]
[EndTime "11:13:59 PDT"]
[Termination "shnitez won by resignation"]

1. c4 {[%clk 0:03:00.9]} 1... g6 {[%clk 0:02:59]} 2. Nc3 {[%clk 0:03:00.5]} 2...
Bg7 {[%clk 0:02:59.7]} 3. Nf3 {[%clk 0:02:59.9]} 3... c5 {[%clk 0:03:00.2]} 4.
e3 {[%clk 0:02:57.5]} 4... Nc6 {[%clk 0:03:00.6]} 5. d4 {[%clk 0:02:57.4]} 5...
cxd4 {[%clk 0:03:00.6]} 6. exd4 {[%clk 0:02:58.3]} 6... d6 {[%clk 0:02:59.7]} 7.
h3 {[%clk 0:02:52.9]} 7... Nf6 {[%clk 0:02:59.2]} 8. d5 {[%clk 0:02:50.9]} 8...
Nb8 {[%clk 0:02:58.3]} 9. Be3 {[%clk 0:02:48.3]} 9... O-O {[%clk 0:02:57.8]} 10.
Be2 {[%clk 0:02:45.7]} 10... Nbd7 {[%clk 0:02:57.2]} 11. O-O {[%clk 0:02:42.9]}
11... a6 {[%clk 0:02:54.8]} 12. Qd2 {[%clk 0:02:39.7]} 12... Qc7 {[%clk
0:02:47.1]} 13. Rac1 {[%clk 0:02:35.4]} 13... Nc5 {[%clk 0:02:45.7]} 14. Bh6
{[%clk 0:02:15.1]} 14... Bf5 {[%clk 0:02:37]} 15. Bxg7 {[%clk 0:02:12.7]} 15...
Kxg7 {[%clk 0:02:37.9]} 16. Nd4 {[%clk 0:02:08.1]} 16... Bd7 {[%clk 0:02:32.1]}
17. Qe3 {[%clk 0:01:58.7]} 17... Rfe8 {[%clk 0:02:25]} 18. b3 {[%clk 0:01:31]}
18... Rac8 {[%clk 0:02:23.7]} 19. f4 {[%clk 0:01:27.6]} 19... Qa5 {[%clk
0:02:19.6]} 20. f5 {[%clk 0:01:19.8]} 20... b5 {[%clk 0:02:17.4]} 21. cxb5
{[%clk 0:01:15.6]} 21... axb5 {[%clk 0:02:17.1]} 22. Bxb5 {[%clk 0:01:07.4]}
22... Bxb5 {[%clk 0:02:15.5]} 23. Ndxb5 {[%clk 0:01:08.3]} 23... Nxd5 {[%clk
0:02:02.5]} 24. Qd4+ {[%clk 0:00:52.9]} 24... Nf6 {[%clk 0:02:01.2]} 25. fxg6
{[%clk 0:00:48.4]} 25... hxg6 {[%clk 0:02:00.2]} 26. b4 {[%clk 0:00:48.2]} 26...
Qb6 {[%clk 0:01:56]} 27. bxc5 {[%clk 0:00:47.1]} 1-0

[Event "*** Titled Tuesday Blitz"]
[Site "Chess.com"]
[Date "2021.04.20"]
[Round "7"]
[White "wonderfultime"]
[Black "DeTimmerman"]
[Result "1-0"]
[WhiteElo "2972"]
[BlackElo "2828"]
[TimeControl "180+1"]
[EndTime "11:14:01 PDT"]
[Termination "wonderfultime won by resignation"]

1. d4 {[%clk 0:03:00.9]} 1... Nf6 {[%clk 0:02:58.8]} 2. Nf3 {[%clk 0:03:01.1]}
2... e6 {[%clk 0:02:59.3]} 3. Bf4 {[%clk 0:03:01.4]} 3... d5 {[%clk 0:02:58.6]}
4. e3 {[%clk 0:03:02]} 4... Bd6 {[%clk 0:02:55.6]} 5. Nbd2 {[%clk 0:03:01.9]}
5... O-O {[%clk 0:02:55.3]} 6. c3 {[%clk 0:03:02.3]} 6... b6 {[%clk 0:02:54.6]}
7. Bd3 {[%clk 0:03:02.6]} 7... Bb7 {[%clk 0:02:54.8]} 8. O-O {[%clk 0:03:02.7]}
8... Ne4 {[%clk 0:02:54.9]} 9. a4 {[%clk 0:02:59.7]} 9... a5 {[%clk 0:02:52.7]}
10. Qc2 {[%clk 0:02:58.4]} 10... f5 {[%clk 0:02:52.7]} 11. c4 {[%clk 0:02:52]}
11... Nd7 {[%clk 0:02:52.1]} 12. cxd5 {[%clk 0:02:48.2]} 12... exd5 {[%clk
0:02:53]} 13. Bxd6 {[%clk 0:02:48.4]} 13... Nxd6 {[%clk 0:02:48.5]} 14. Rac1
{[%clk 0:02:47.8]} 14... Rc8 {[%clk 0:02:47.7]} 15. Qc3 {[%clk 0:02:28.3]} 15...
Qe7 {[%clk 0:02:45.4]} 16. Qa3 {[%clk 0:02:28]} 16... Kf7 {[%clk 0:02:39.7]} 17.
b4 {[%clk 0:02:11.3]} 17... Ne4 {[%clk 0:02:35.1]} 18. Rb1 {[%clk 0:02:05.5]}
18... Nxd2 {[%clk 0:02:30]} 19. Nxd2 {[%clk 0:02:05.3]} 19... axb4 {[%clk
0:02:30.6]} 20. Rxb4 {[%clk 0:02:05.2]} 20... Ra8 {[%clk 0:02:30.7]} 21. Rc1
{[%clk 0:02:03.6]} 21... Rfc8 {[%clk 0:02:28.2]} 22. Bxf5 {[%clk 0:02:03]} 22...
g6 {[%clk 0:02:20.5]} 23. Bxd7 {[%clk 0:02:00.5]} 23... Qxd7 {[%clk 0:02:19.7]}
24. Nf3 {[%clk 0:02:01.1]} 24... Qd6 {[%clk 0:02:16.6]} 25. Qb2 {[%clk
0:01:54.6]} 25... Ra5 {[%clk 0:02:09.4]} 26. h3 {[%clk 0:01:53.8]} 26... Rca8
{[%clk 0:02:06.6]} 27. Qc3 {[%clk 0:01:52.3]} 27... c5 {[%clk 0:01:56.5]} 28.
Rbb1 {[%clk 0:01:34.7]} 28... c4 {[%clk 0:01:43.1]} 29. e4 {[%clk 0:01:34.8]}
29... dxe4 {[%clk 0:01:41.9]} 30. Ne5+ {[%clk 0:01:33.4]} 30... Rxe5 {[%clk
0:01:38.3]} 31. dxe5 {[%clk 0:01:33.4]} 31... Qc6 {[%clk 0:01:17.4]} 32. Qxc4+
{[%clk 0:01:33.1]} 1-0

[Event "*** Titled Tuesday Blitz"]
[Site "Chess.com"]
[Date "2021.04.20"]
[Round "7"]
[White "manitodeplomo"]
[Black "vovachesss"]
[Result "1-0"]
[WhiteElo "2589"]
[BlackElo "2687"]
[TimeControl "180+1"]
[EndTime "11:14:09 PDT"]
[Termination "manitodeplomo won by resignation"]

1. d4 {[%clk 0:03:00.9]} 1... Nf6 {[%clk 0:02:59.8]} 2. c4 {[%clk 0:03:01.2]}
2... d6 {[%clk 0:02:54.3]} 3. Nc3 {[%clk 0:02:59.9]} 3... Bf5 {[%clk 0:02:54]}
4. e4 {[%clk 0:02:58.9]} 4... Nxe4 {[%clk 0:02:53.3]} 5. Qf3 {[%clk 0:02:59.4]}
5... Nxc3 {[%clk 0:02:45.8]} 6. Qxf5 {[%clk 0:02:58.5]} 6... Na4 {[%clk
0:02:33.8]} 7. Qb5+ {[%clk 0:02:57.6]} 7... Qd7 {[%clk 0:02:30.8]} 8. Qxb7
{[%clk 0:02:58]} 8... Nb6 {[%clk 0:02:14.7]} 9. c5 {[%clk 0:02:23.3]} 9... dxc5
{[%clk 0:01:46.2]} 10. dxc5 {[%clk 0:02:24.2]} 10... Nc6 {[%clk 0:01:03.3]} 11.
Bb5 {[%clk 0:01:58]} 11... Rb8 {[%clk 0:00:14.9]} 12. Qxc6 {[%clk 0:01:35.7]}
1-0

[Event "*** Titled Tuesday Blitz"]
[Site "Chess.com"]
[Date "2021.04.20"]
[Round "7"]
[White "Sadykov_Ramil"]
[Black "TheRealPeakyBlinder"]
[Result "0-1"]
[WhiteElo "2487"]
[BlackElo "2648"]
[TimeControl "180+1"]
[EndTime "11:14:13 PDT"]
[Termination "TheRealPeakyBlinder won by resignation"]

1. e4 {[%clk 0:03:00.9]} 1... e6 {[%clk 0:02:49]} 2. d4 {[%clk 0:03:00.5]} 2...
d5 {[%clk 0:02:48.9]} 3. Nc3 {[%clk 0:03:00]} 3... h6 {[%clk 0:02:49.2]} 4. Nf3
{[%clk 0:02:55.2]} 4... Nf6 {[%clk 0:02:47.6]} 5. e5 {[%clk 0:02:53.8]} 5... Ne4
{[%clk 0:02:47.7]} 6. Bd3 {[%clk 0:02:35.2]} 6... Bb4 {[%clk 0:02:45.6]} 7. O-O
{[%clk 0:02:17.3]} 7... Nxc3 {[%clk 0:02:44.6]} 8. bxc3 {[%clk 0:02:17.1]} 8...
Bxc3 {[%clk 0:02:45.5]} 9. Rb1 {[%clk 0:02:17.6]} 9... a5 {[%clk 0:02:46]} 10.
Ba3 {[%clk 0:02:10.7]} 10... Nc6 {[%clk 0:02:40.9]} 11. Bb5 {[%clk 0:01:39.8]}
11... Bd7 {[%clk 0:02:38.8]} 12. Qd3 {[%clk 0:01:22.5]} 12... Bb4 {[%clk
0:02:34.4]} 13. Bxc6 {[%clk 0:01:02.4]} 13... Bxc6 {[%clk 0:02:32.9]} 14. Bxb4
{[%clk 0:01:00.9]} 14... axb4 {[%clk 0:02:33.2]} 15. Rxb4 {[%clk 0:00:56.5]}
15... Rxa2 {[%clk 0:02:32.1]} 16. Qb3 {[%clk 0:00:32.8]} 16... Qa8 {[%clk
0:02:22]} 17. Ne1 {[%clk 0:00:25.8]} 17... O-O {[%clk 0:02:16.8]} 18. f4 {[%clk
0:00:20.7]} 18... Qa3 {[%clk 0:02:08.5]} 19. Rf3 {[%clk 0:00:14.9]} 19... Qc1
{[%clk 0:01:59.2]} 20. Qxa2 {[%clk 0:00:12.8]} 20... Qxe1+ {[%clk 0:01:59.3]}
21. Rf1 {[%clk 0:00:12.3]} 21... Qxb4 {[%clk 0:02:00]} 0-1